bitfinex-derivatives/quotes_BTCF0:USTF0_20251215
["timestamp","ask_amount","ask_price","bid_price","bid_amount"]
[1765815528226,0.738595,86996.0,86995.0,0.00017244]
[1765815529332,0.738595,86996.0,86995.0,0.32611244]
[1765815529536,0.39552,86996.0,86995.0,0.66431244]
[1765815529728,0.04,86996.0,86995.0,0.66431244]
[1765815529925,0.00017244,87012.0,87008.0,0.66314]
[1765815530237,0.55569244,87012.0,87011.0,0.674633]
[1765815530934,0.89876524,87012.0,87011.0,0.66314]
[1765815531434,0.6985935,87007.0,87006.0,0.6746336]
[1765815531634,0.5370135,87007.0,87006.0,0.6746336]
[1765815532622,0.52552,87007.0,87006.0,0.6746336]
[1765815532828,0.33158,87004.0,87000.0,0.52418]
[1765815533028,0.35552,87001.0,87000.0,0.90139452]
[1765815533228,0.00017244,87012.0,87011.0,0.66314]
[1765815533625,0.3670116,87022.0,87021.0,0.86138]
[1765815533836,0.8785916,87022.0,87021.0,0.86138]
[1765815534335,0.18,87022.0,87021.0,0.86138]
[1765815534633,0.6871,87017.0,87016.0,0.3374322]
[1765815534839,0.6985926,87014.0,87013.0,0.00017244]
[1765815535050,0.8685926,87014.0,87013.0,0.00017244]
[1765815535333,0.17,87014.0,87013.0,0.66331244]
[1765815535540,0.3670118,87020.0,87019.0,0.6746319]
[1765815535724,0.8685918,87020.0,87019.0,0.66314]
[1765815535931,0.6985926,87014.0,87013.0,0.00017244]
[1765815536130,0.8685926,87014.0,87013.0,0.00017244]
[1765815537836,0.8685926,87014.0,87000.0,0.19824]
[1765815537837,0.6985943,87001.0,87000.0,0.19824]
[1765815538030,0.7185943,87001.0,87000.0,0.52418]
[1765815538236,0.6985943,87001.0,87000.0,0.52418]
[1765815538429,0.8485943,87001.0,87000.0,0.52418]
[1765815538637,0.367015,86996.0,86995.0,0.66314]
[1765815538838,0.698595,86996.0,86995.0,0.66314]
[1765815539341,0.6985955,86992.0,86991.0,0.0114956]
[1765815539540,0.3670159,86989.0,86988.0,0.535676]
[1765815539741,0.3670159,86989.0,86988.0,0.872876]
[1765815540040,0.6985953,86994.0,86993.0,0.3374352]
[1765815540227,0.0114953,86994.0,86993.0,0.6746352]
[1765815540430,0.0114953,86994.0,86993.0,0.32594]
[1765815540431,0.6985953,86994.0,86993.0,0.32594]
[1765815540642,0.6985953,86994.0,86993.0,0.66314]
[1765815541038,0.7385953,86994.0,86993.0,0.66314]
[1765815541238,0.6985959,86989.0,86988.0,0.52418]
[1765815541427,0.00017244,87004.0,86989.0,0.0114958]
[1765815541632,0.0114954,86993.0,86992.0,0.66314]
[1765815541832,0.3440151,86996.0,86995.0,0.6759]
[1765815542033,0.8518351,86996.0,86995.0,0.6759]
[1765815542237,0.1814951,86996.0,86995.0,0.6759]
[1765815542438,0.17,86996.0,86995.0,0.6759]
[1765815542840,0.50252,86996.0,86995.0,0.6759]
[1765815543435,0.67034,86994.0,86993.0,0.001]
[1765815543634,0.85034,86994.0,86993.0,0.69244]
[1765815543948,0.00017244,87004.0,87003.0,0.69144]
[1765815544244,0.16017244,87004.0,87003.0,0.69144]
[1765815544741,0.011492,87019.0,87018.0,0.69144]
[1765815544944,0.681833,87011.0,87010.0,0.902663]
[1765815545440,0.681833,87011.0,87010.0,0.89117]
[1765815545643,0.6818343,87001.0,87000.0,0.3529744]
[1765815545943,0.67034,87001.0,87000.0,0.7029344]
[1765815546146,0.0114939,87005.0,87004.0,0.69144]
[1765815546335,0.0114934,87008.0,87007.0,0.69144]
[1765815546536,0.2114934,87008.0,87007.0,0.69144]
[1765815546738,0.2,87008.0,87007.0,0.69144]
[1765815546944,0.00017244,87019.0,87018.0,0.7029321]
[1765815547242,0.00017244,87019.0,87018.0,0.69144]
[1765815547243,0.86051244,87019.0,87018.0,0.69144]
[1765815548138,0.86151244,87019.0,87018.0,0.34148]
[1765815548742,0.86051244,87019.0,87018.0,0.34148]
[1765815549143,0.67034,87011.0,87010.0,0.89134244]
[1765815549334,0.881833,87011.0,87010.0,0.89134244]
[1765815549839,0.211493,87011.0,87010.0,0.89134244]
[1765815550041,0.2,87011.0,87010.0,0.89134244]
[1765815550442,0.87034,87011.0,87010.0,0.89134244]
[1765815550844,0.2,87011.0,87010.0,0.89134244]
[1765815551044,0.00117244,87019.0,87018.0,0.69144]
[1765815551342,0.17017244,87019.0,87018.0,0.69144]
[1765815551845,0.50269244,87019.0,87018.0,0.69144]
[1765815552442,0.50269244,87019.0,87018.0,0.69244]
[1765815552635,0.00017244,87019.0,87018.0,0.69244]
[1765815552831,0.34269244,87019.0,87018.0,0.69244]
[1765815553246,0.01017244,87019.0,87018.0,0.69244]
[1765815553444,0.34269244,87019.0,87018.0,0.69244]
[1765815554244,0.85051244,87019.0,87018.0,0.001]
[1765815554547,0.85051244,87019.0,87010.0,0.90283554]
[1765815554548,0.67034,87011.0,87010.0,0.90283554]
[1765815554738,0.681833,87011.0,87010.0,0.89134244]
[1765815554934,0.011493,87011.0,87010.0,0.89134244]
[1765815556150,0.344013,87011.0,87010.0,0.89234244]
[1765815556649,0.011493,87011.0,87010.0,0.89234244]
[1765815556838,0.00017244,87019.0,87018.0,0.69144]
[1765815557037,0.03017244,87019.0,87018.0,0.69144]
[1765815557237,0.01681024,87019.0,87018.0,0.69144]
[1765815557443,0.67034,87019.0,87018.0,0.69144]
[1765815557646,0.85034,87019.0,87018.0,0.69144]
[1765815557948,0.85034,87019.0,87018.0,0.34148]
[1765815558134,0.011493,87011.0,87010.0,0.89234244]
[1765815558332,0.841833,87011.0,87010.0,0.00117244]
[1765815558933,0.6818346,86999.0,86998.0,0.36983991]
[1765815559136,0.8718346,86999.0,86998.0,0.36983991]
[1765815559944,0.8718346,86999.0,86998.0,0.69144]
[1765815560333,0.25,87013.0,87009.0,0.34148]
[1765815560334,0.6818331,87010.0,87009.0,0.34148]
[1765815560537,0.8718331,87010.0,87009.0,0.34148]
[1765815561049,0.01166454,87018.0,87017.0,0.69144]
[1765815561237,0.54418454,87018.0,87017.0,0.69144]
[1765815561443,0.20017244,87018.0,87017.0,0.69144]
[1765815562042,0.87051244,87018.0,87017.0,0.69144]
[1765815562248,0.87051244,87018.0,87017.0,0.34148]
[1765815562751,0.87051244,87018.0,87017.0,0.34248]
[1765815563140,0.87051244,87018.0,87017.0,0.69244]
[1765815563541,0.87051244,87018.0,87017.0,0.001]
[1765815563948,0.6818331,87010.0,87009.0,0.00017244]
[1765815564149,1.0292731,87010.0,87009.0,0.00017244]
[1765815564450,1.0292731,87010.0,86990.0,0.15851933]
[1765815564451,0.6818356,86991.0,86990.0,0.34148]
[1765815564653,0.6818356,86991.0,86990.0,0.69144]
[1765815564654,0.7018356,86991.0,86990.0,0.69144]
[1765815564945,0.3640156,86991.0,86990.0,0.69144]
[1765815565150,0.02,86991.0,86990.0,0.69144]
[1765815565847,0.67034,86986.0,86985.0,0.69144]
[1765815566051,0.69034,86986.0,86985.0,0.69144]
[1765815566846,0.00017244,86999.0,86998.0,0.69144]
[1765815567048,0.01166704,86999.0,86998.0,0.69144]
[1765815567551,0.00017244,86999.0,86998.0,0.69144]
[1765815567748,0.3440159,86989.0,86988.0,0.89117]
[1765815567946,0.6818359,86989.0,86988.0,0.89117]
[1765815568249,0.01266704,86999.0,86998.0,0.69144]
[1765815568636,0.00117244,86999.0,86998.0,0.69144]
[1765815568839,0.0114922,87018.0,87017.0,0.69144]
[1765815569056,0.4540122,87018.0,87017.0,0.69144]
[1765815570143,0.7918322,87018.0,87017.0,0.69144]
[1765815571247,0.1214922,87018.0,87017.0,0.69144]
[1765815571448,0.11,87018.0,87017.0,0.69144]
[1765815572748,0.11,87018.0,87017.0,0.69244]
[1765815573353,0.66660244,87026.0,87025.0,0.6816]
[1765815573550,0.85660244,87026.0,87025.0,0.6816]
[1765815574154,0.19017244,87026.0,87025.0,0.6816]
[1765815574755,0.06017244,87026.0,87025.0,0.6816]
[1765815574960,0.01166344,87026.0,87025.0,0.6816]
[1765815575263,0.00017244,87026.0,87025.0,0.6816]
[1765815575462,0.00017244,87026.0,87025.0,0.6826]
[1765815576259,0.00017244,87026.0,87025.0,0.6836]
[1765815576959,0.00017244,87026.0,87025.0,0.77659576]
[1765815577160,0.32578244,87026.0,87025.0,0.77759576]
[1765815577362,0.66660244,87026.0,87025.0,0.77659576]
[1765815577557,0.00017244,87026.0,87025.0,0.77759576]
[1765815578260,0.00017244,87026.0,87025.0,0.77659576]
[1765815578862,0.32578244,87026.0,87025.0,0.6826]
[1765815579061,0.66643,87022.0,87021.0,0.21014]
[1765815579367,0.6779215,87022.0,87021.0,0.89174]
[1765815579758,0.6779215,87022.0,87019.0,0.0114918]
[1765815579759,0.0114928,87012.0,87011.0,0.6930929]
[1765815579964,0.32561,87012.0,87011.0,0.6816]
[1765815580159,0.0114925,87015.0,87014.0,0.6816]
[1765815580560,0.0114921,87018.0,87017.0,0.6816]
[1765815581360,0.32578244,87026.0,87025.0,0.32862]
[1765815581665,0.33727344,87026.0,87025.0,0.6816]
[1765815581859,0.32578244,87026.0,87025.0,0.6816]
[1765815582059,0.65139244,87026.0,87025.0,0.6816]
[1765815582363,0.99221244,87026.0,87025.0,0.6816]
[1765815582868,0.65139244,87026.0,87025.0,0.6816]
[1765815583263,0.32578244,87026.0,87025.0,0.6816]
[1765815583465,0.00017244,87026.0,87025.0,0.6816]
[1765815584565,0.00017244,87026.0,87025.0,0.6826]
[1765815584786,0.30608691,87060.0,87025.0,0.6826]
[1765815585072,0.0114883,87047.0,87046.0,0.6816]
[1765815585261,0.00229733,87058.0,87057.0,0.6816]
[1765815585457,0.66643,87055.0,87047.0,0.0114882]
[1765815585661,0.0114876,87053.0,87052.0,0.6816]
[1765815585868,0.2014876,87053.0,87052.0,0.6816]
[1765815586370,0.19,87053.0,87052.0,0.70143587]
[1765815586571,0.00229733,87058.0,87057.0,0.6930869]
[1765815586765,0.12229733,87058.0,87057.0,0.6930869]
[1765815590767,0.011485,87072.0,87071.0,0.6816]
[1765815591070,0.507095,87072.0,87071.0,0.6816]
[1765815592464,0.509095,87072.0,87071.0,0.6816]
[1765815592666,0.6779156,87067.0,87066.0,1.5]
[1765815592871,0.5170956,87067.0,87066.0,1.5]
[1765815593271,0.84643,87067.0,87066.0,1.5]
[1765815593471,0.18,87067.0,87066.0,1.5]
[1765815594272,0.50661,87067.0,87066.0,1.5]
[1765815594577,0.84843,87067.0,87066.0,1.5]
[1765815594765,0.32561,87064.0,87063.0,0.35315234]
[1765815594970,0.42561,87064.0,87063.0,0.35315234]
[1765815595178,0.42561,87064.0,87063.0,0.68177234]
[1765815595380,0.1,87064.0,87063.0,2.19325844]
[1765815595877,0.101,87064.0,87063.0,2.18177234]
[1765815596280,0.102,87064.0,87063.0,2.18177234]
[1765815598091,0.0114842,87078.0,87077.0,0.6816]
[1765815598378,0.0114842,87078.0,87077.0,0.6930843]
[1765815598379,0.17,87078.0,87077.0,0.6930843]
[1765815599181,0.173,87078.0,87077.0,0.6930843]
[1765815599484,0.176,87078.0,87077.0,0.6930843]
[1765815599674,0.0114829,87089.0,87088.0,0.6816]
[1765815599977,0.1814829,87089.0,87088.0,0.6816]
[1765815600381,0.17,87089.0,87088.0,0.6816]
[1765815600579,0.8479127,87089.0,87088.0,0.6816]
[1765815600879,0.8479127,87089.0,87088.0,0.35298]
[1765815601071,0.6779137,87081.0,87080.0,0.00017223]
[1765815601278,0.0114837,87081.0,87080.0,0.68177223]
[1765815601780,0.005,87089.0,87088.0,0.66862]
[1765815601971,0.8474927,87089.0,87088.0,0.66862]
[1765815602283,0.8424927,87089.0,87088.0,0.66862]
[1765815602478,0.6824937,87081.0,87080.0,0.66879223]
[1765815602980,0.0114837,87081.0,87080.0,0.66879223]
[1765815603177,0.3573837,87081.0,87080.0,0.66879223]
[1765815603382,0.6824937,87081.0,87080.0,0.66879223]
[1765815603773,0.6854937,87081.0,87080.0,0.66879223]
[1765815604178,0.003,87081.0,87080.0,0.66879223]
[1765815604883,0.005,87081.0,87080.0,0.66879223]
[1765815607789,0.0114817,87097.0,87096.0,0.6801018]
[1765815607982,0.19,87097.0,87096.0,0.6801018]
[1765815609283,0.86101,87097.0,87096.0,0.66862]
[1765815609476,0.3573828,87088.0,87087.0,0.87359]
[1765815609676,0.6824928,87088.0,87087.0,0.99701]
[1765815609887,0.6824928,87088.0,87087.0,1.3215]
[1765815610182,0.6824928,87088.0,87087.0,0.34413]
[1765815610378,0.6824935,87083.0,87082.0,0.43303]
[1765815610980,0.6824935,87083.0,87082.0,0.75752]
[1765815611779,0.6824935,87083.0,87082.0,0.75952]
[1765815612174,0.6824935,87083.0,87082.0,0.67062]
[1765815612377,0.6824935,87083.0,87082.0,0.002]
[1765815612893,0.67101,87081.0,87080.0,0.00017223]
[1765815613581,0.86101,87081.0,87080.0,0.00017223]
[1765815614178,0.86101,87081.0,87080.0,0.00117223]
[1765815614179,0.74101,87081.0,87080.0,0.00117223]
[1765815614486,0.77205908,87081.0,87080.0,0.00117223]
[1765815614786,0.77205908,87081.0,87080.0,0.00217223]
[1765815614987,0.77205908,87081.0,87080.0,0.00117223]
[1765815615189,0.67201,87081.0,87080.0,0.00117223]
[1765815615391,0.70306845,87081.0,87080.0,0.00117223]
[1765815615985,0.87306845,87081.0,87080.0,0.00117223]
[1765815616776,0.682496,87064.0,87063.0,1.5]
[1765815616980,0.011487,87058.0,87057.0,0.6801068]
[1765815617385,0.011487,87058.0,87057.0,2.1801068]
[1765815617586,0.011487,87058.0,87057.0,2.16862]
[1765815617795,0.682497,87058.0,87057.0,2.16862]
[1765815618090,0.011487,87058.0,87057.0,2.16862]
[1765815618285,0.357387,87058.0,87057.0,2.16862]
[1765815619078,0.00017189,87066.0,87065.0,0.6801059]
[1765815619385,0.0114826,87090.0,87080.0,0.8628739]
[1765815619587,0.0114826,87090.0,87080.0,2.3628739]
[1765815619790,0.0114833,87085.0,87080.0,2.3628739]
[1765815619992,0.67301,87081.0,87070.0,0.18277]
[1765815620291,0.6824951,87072.0,87071.0,0.66862]
[1765815621594,0.6824951,87072.0,87071.0,0.34413]
[1765815621790,0.67101,87071.0,87070.0,0.001]
[1765815622095,0.74101,87071.0,87070.0,0.001]
[1765815622296,0.87101,87071.0,87070.0,0.001]
[1765815623190,0.5459,87071.0,87070.0,0.66962]
[1765815623498,0.0114851,87072.0,87071.0,0.66862]
[1765815623696,0.0814851,87072.0,87071.0,0.66962]
[1765815623896,0.2114851,87072.0,87071.0,0.66962]
[1765815624096,0.215603,87087.0,87071.0,0.001]
[1765815624097,0.20412,87087.0,87071.0,0.001]
[1765815624297,0.357384,87080.0,87079.0,0.66862]
[1765815624499,0.882494,87080.0,87079.0,0.66862]
[1765815625184,0.557384,87080.0,87079.0,0.66862]
[1765815625387,0.0114834,87084.0,87083.0,0.66862]
[1765815625588,0.08,87084.0,87083.0,0.66862]
[1765815626299,0.078,87084.0,87083.0,0.66862]
[1765815626498,0.0114817,87097.0,87096.0,0.66862]
[1765815626800,0.22113743,87097.0,87096.0,0.66862]
[1765815626996,0.0114827,87089.0,87088.0,0.66879223]
[1765815627199,0.0814827,87089.0,87088.0,0.66879223]
[1765815627499,0.07,87089.0,87088.0,2.16879223]
[1765815628589,0.06960968,87089.0,87088.0,2.17079223]
[1765815628788,0.00229628,87098.0,87097.0,0.66862]
[1765815628998,0.20173031,87098.0,87097.0,0.6801016]
[1765815629391,0.17229628,87098.0,87097.0,0.6801016]
[1765815630287,0.17329628,87098.0,87097.0,0.6801016]
[1765815631188,0.17329628,87098.0,87097.0,0.66862]
[1765815631388,0.86252628,87098.0,87097.0,0.66862]
[1765815632202,0.17329628,87098.0,87097.0,0.66862]
[1765815633490,0.02329628,87098.0,87097.0,0.66862]
[1765815633796,1.72259094,87131.0,87097.0,0.66862]
[1765815633797,0.0619132,87127.0,87126.0,0.71279]
[1765815633999,0.0114775,87129.0,87128.0,0.71279]
[1765815634186,0.1914775,87129.0,87128.0,0.71279]
[1765815634385,0.89786384,87129.0,87128.0,0.71279]
[1765815635100,0.88638634,87129.0,87128.0,0.71279]
[1765815635302,0.53439634,87129.0,87128.0,0.73237982]
[1765815635610,0.20872634,87129.0,87128.0,0.73237982]
[1765815636101,0.20972634,87129.0,87128.0,0.73237982]
[1765815637296,0.21172634,87129.0,87128.0,0.73237982]
[1765815638989,0.183,87129.0,87128.0,0.73237982]
[1765815639201,0.053,87129.0,87128.0,0.73237982]
[1765815639497,0.00229522,87138.0,87137.0,0.71279]
[1765815639700,0.18229522,87138.0,87137.0,1.43535]
[1765815639901,0.20956819,87138.0,87137.0,1.4468264]
[1765815640601,0.21356819,87138.0,87137.0,1.4468264]
[1765815640896,0.21356819,87138.0,87137.0,1.43535]
[1765815641304,0.21556819,87138.0,87137.0,1.43535]
[1765815641501,0.54123819,87138.0,87137.0,1.43535]
[1765815641706,0.21556819,87138.0,87137.0,1.43535]
[1765815642205,0.21516998,87138.0,87137.0,1.43535]
[1765815642502,0.18829522,87138.0,87137.0,1.43535]
[1765815642799,0.00829522,87138.0,87137.0,1.43535]
[1765815643000,0.00829522,87138.0,87137.0,1.4638081]
[1765815643998,0.00629522,87138.0,87137.0,1.4638081]
[1765815644498,0.00529522,87138.0,87137.0,1.4638081]
[1765815645399,0.00529522,87138.0,87137.0,0.7412481]
[1765815645594,0.68295522,87138.0,87137.0,1.4636481]
[1765815645994,0.00529522,87138.0,87137.0,1.4636481]
[1765815646195,0.00529522,87138.0,87137.0,1.43519]
[1765815646196,0.68295522,87138.0,87137.0,1.43519]
[1765815646397,0.68295522,87138.0,87137.0,0.71279]
[1765815646603,0.68295522,87138.0,87137.0,1.43519]
[1765815647601,0.68095522,87138.0,87137.0,1.43719]
[1765815647797,0.67995522,87138.0,87137.0,1.44019]
[1765815648504,0.67995522,87138.0,87137.0,1.43719]
[1765815648808,0.67995522,87138.0,87137.0,1.43919]
[1765815649397,0.67995522,87138.0,87137.0,1.43819]
[1765815649607,0.67995522,87138.0,87137.0,1.43919]
[1765815649802,0.00229522,87138.0,87137.0,1.43919]
[1765815650002,0.67995522,87138.0,87137.0,1.43919]
[1765815650208,0.67995522,87138.0,87137.0,1.43911]
[1765815650408,0.67995522,87138.0,87137.0,1.44011]
[1765815650593,0.67995522,87138.0,87128.0,0.25139744]
[1765815650594,0.67766,87129.0,87128.0,0.10153639]
[1765815650800,0.67766,87129.0,87116.0,0.0114791]
[1765815650801,0.6891387,87119.0,87116.0,0.0114791]
[1765815651099,0.6891387,87119.0,87110.0,0.0114798]
[1765815651100,0.8791387,87119.0,87110.0,0.0114798]
[1765815651413,0.8791387,87119.0,87108.0,0.08206528]
[1765815651709,0.8791387,87119.0,87118.0,0.01976676]
[1765815651904,0.8691387,87119.0,87118.0,0.01976676]
[1765815652109,0.6891401,87109.0,87108.0,0.00011871]
[1765815652511,0.9758201,87109.0,87108.0,0.00011871]
[1765815653006,0.67766,87089.0,87088.0,0.43568657]
[1765815653207,0.6891427,87089.0,87088.0,0.35374]
[1765815653399,0.0114824,87092.0,87091.0,0.7242724]
[1765815653601,0.00017223,87097.0,87096.0,0.35374]
[1765815653602,0.68931383,87097.0,87096.0,0.35374]
[1765815654006,0.68942125,87097.0,87096.0,0.35374]
[1765815654311,0.6891423,87093.0,87092.0,0.71279]
[1765815655508,0.67766,87093.0,87092.0,0.35374]
[1765815655706,0.6891423,87092.0,87091.0,0.001]
[1765815655916,0.6891427,87089.0,87088.0,0.01509227]
[1765815656213,0.6891427,87089.0,87080.0,0.00017223]
[1765815656214,0.6891437,87081.0,87080.0,0.00017223]
[1765815656398,0.6891456,87067.0,87065.0,0.08194657]
[1765815656599,0.67766,87062.0,87058.0,0.00229733]
[1765815656809,0.8791462,87062.0,87061.0,0.02032231]
[1765815658011,0.8791462,87062.0,87058.0,0.00229733]
[1765815658012,0.67766,87059.0,87058.0,3e-08]
[1765815658208,0.6891473,87054.0,87053.0,0.02019268]
[1765815658406,0.8891473,87054.0,87053.0,0.00549111]
[1765815658608,0.8891473,87054.0,87034.0,0.08194657]
[1765815658609,0.6891497,87036.0,87034.0,0.08194657]
[1765815658910,0.35199,87033.0,87027.0,0.08194657]
[1765815659107,0.00012776,87035.0,87027.0,0.08194657]
[1765815659108,0.32567,87028.0,87027.0,0.71279]
[1765815660005,0.32567,87028.0,87027.0,0.73265561]
[1765815660202,0.00012776,87035.0,87027.0,0.73265561]
[1765815660401,0.67766,87028.0,87027.0,0.02486561]
[1765815660611,0.75766,87028.0,87027.0,0.02486561]
[1765815660918,0.40567,87028.0,87027.0,0.73765561]
[1765815661418,0.75766,87028.0,87027.0,0.74265561]
[1765815661613,0.75766,87028.0,87027.0,0.73725561]
[1765815662105,0.08,87028.0,87027.0,0.73725561]
[1765815662307,0.00012776,87035.0,87034.0,0.7069799]
[1765815662713,0.70246,87028.0,87027.0,0.02986561]
[1765815662921,0.00012776,87035.0,87030.0,0.0114903]
[1765815663111,0.02012776,87035.0,87034.0,0.69549]
[1765815663616,0.00012776,87035.0,87034.0,0.69549]
[1765815663809,0.0114871,87056.0,87048.0,0.011488]
[1765815664010,0.1914871,87056.0,87048.0,0.173338]
[1765815664410,0.5475771,87056.0,87055.0,0.69549]
[1765815664715,0.8939471,87056.0,87055.0,0.34184]
[1765815664916,0.89408391,87056.0,87055.0,0.34184]
[1765815666815,0.18013681,87056.0,87055.0,0.7069772]
[1765815667011,0.18013681,87056.0,87055.0,0.7079772]
[1765815667414,0.00013681,87056.0,87055.0,0.7079772]
[1765815668216,0.00017234,87064.0,87063.0,0.7069761]
[1765815668617,0.70263234,87064.0,87063.0,0.3533261]
[1765815668922,0.00017234,87064.0,87063.0,0.7069761]
[1765815670120,0.0114827,87089.0,87085.0,0.0114832]
[1765815670307,0.0114827,87089.0,87088.0,0.69549]
[1765815670308,0.2014827,87089.0,87088.0,0.69549]
[1765815670512,0.19,87089.0,87088.0,0.7069728]
[1765815670709,0.19,87089.0,87088.0,0.69549]
[1765815671309,0.19,87089.0,87088.0,0.71556426]
[1765815671510,0.1699867,87089.0,87088.0,0.71556426]
[1765815671711,0.8724467,87089.0,87088.0,0.02007426]
[1765815671912,0.1699867,87089.0,87088.0,0.69549]
[1765815672316,0.3675722,87094.0,87093.0,0.34184]
[1765815672511,0.5675722,87094.0,87093.0,0.34184]
[1765815672810,0.9139422,87094.0,87093.0,0.34184]
[1765815673212,0.7139427,87089.0,87088.0,0.02270697]
[1765815673412,0.7339427,87089.0,87088.0,0.02570697]
[1765815673626,0.3875727,87089.0,87088.0,0.72119697]
[1765815673922,0.37609,87089.0,87088.0,0.71919697]
[1765815674114,0.00017202,87097.0,87096.0,0.8792]
[1765815674316,0.16017202,87097.0,87096.0,0.8792]
[1765815674714,0.00017202,87097.0,87096.0,0.8792]
[1765815676626,0.00017202,87097.0,87096.0,0.8812]
[1765815676922,0.00017202,87097.0,87096.0,0.8842]
[1765815677221,0.00017202,87097.0,87096.0,0.8812]
[1765815677520,0.00017202,87097.0,87096.0,0.8842]
[1765815677929,0.00017202,87097.0,87096.0,0.8822]
[1765815678131,0.00017202,87097.0,87096.0,0.8842]
[1765815678621,0.00017202,87097.0,87096.0,0.8802]
[1765815678812,0.4955187,87120.0,87096.0,0.8802]
[1765815678813,0.20096,87120.0,87109.0,0.18676]
[1765815679016,0.3675699,87110.0,87109.0,0.69549]
[1765815679310,0.5675699,87110.0,87109.0,0.69549]
[1765815679514,0.9139399,87110.0,87109.0,0.69549]
[1765815679926,0.713941,87102.0,87101.0,0.69566223]
[1765815680426,0.367571,87102.0,87101.0,0.69566223]
[1765815681131,0.70246,87113.0,87112.0,0.69549]
[1765815681422,0.88246,87113.0,87112.0,0.69549]
[1765815681726,0.8939395,87113.0,87112.0,0.69549]
[1765815682028,0.011478,87125.0,87124.0,0.7069681]
[1765815682325,0.0114774,87129.0,87128.0,0.69549]
[1765815682519,0.1714774,87129.0,87128.0,0.69549]
[1765815683124,0.8739374,87129.0,87128.0,0.69549]
[1765815683717,0.16,87129.0,87128.0,0.78956721]
[1765815684122,0.0114757,87142.0,87137.0,0.69549]
[1765815684421,0.18229522,87138.0,87137.0,0.7069664]
[1765815685323,0.06329522,87138.0,87137.0,0.7069664]
[1765815686220,0.06529522,87138.0,87137.0,0.7069664]
[1765815687524,0.42138522,87138.0,87137.0,0.69549]
[1765815687727,0.06529522,87138.0,87137.0,0.69549]
[1765815688226,0.002,87138.0,87137.0,0.69549]
[1765815688931,0.011472,87170.0,87134.0,0.72244]
[1765815688932,0.0114753,87146.0,87145.0,0.7069653]
[1765815689127,0.0114746,87151.0,87150.0,0.7069647]
[1765815689326,0.1814746,87151.0,87150.0,0.7069647]
[1765815689528,0.1814746,87151.0,87150.0,0.69549]
[1765815690328,0.1854746,87151.0,87150.0,0.69549]
[1765815690731,0.7171256,87143.0,87142.0,0.68551]
[1765815691227,0.0184745,87151.0,87150.0,0.68551]
[1765815691429,0.167,87151.0,87150.0,0.68551]
[1765815692130,0.88647,87151.0,87150.0,0.68551]
[1765815692634,0.88647,87151.0,87142.0,0.92256]
[1765815692635,0.0134756,87143.0,87142.0,0.89914]
[1765815692829,0.7267762,87138.0,87137.0,0.35218213]
[1765815693125,0.7267762,87138.0,87137.0,0.69903213]
[1765815693329,0.004,87143.0,87142.0,0.9138657]
[1765815693526,0.0114738,87157.0,87156.0,0.69886]
[1765815693726,0.0114738,87157.0,87153.0,0.20353]
[1765815693727,0.7267733,87160.0,87159.0,0.69886]
[1765815693920,0.2114733,87160.0,87159.0,0.69886]
[1765815694124,0.2114733,87160.0,87159.0,0.71910254]
[1765815694324,0.2,87160.0,87159.0,0.71910254]
[1765815694520,0.9153,87160.0,87159.0,0.37225254]
[1765815694731,0.9153,87160.0,87159.0,0.02024254]
[1765815694925,0.7267748,87149.0,87148.0,0.00017213]
[1765815695123,0.7967748,87149.0,87148.0,0.00017213]
[1765815695328,0.75661282,87149.0,87148.0,0.00017213]
[1765815695532,0.0814748,87149.0,87148.0,0.00017213]
[1765815695720,0.2014748,87149.0,87148.0,0.01986283]
[1765815695924,0.2014748,87149.0,87148.0,0.00017213]
[1765815696126,0.2014748,87149.0,87148.0,0.69903213]
[1765815696321,0.2014748,87149.0,87148.0,0.70003213]
[1765815696636,0.19,87149.0,87148.0,0.71965295]
[1765815697025,0.19,87149.0,87148.0,0.02079295]
[1765815697532,0.19,87149.0,87148.0,0.72065295]
[1765815697733,0.0114744,87153.0,87152.0,0.7103344]
[1765815698032,0.2114744,87153.0,87152.0,0.69886]
[1765815698925,0.2,87153.0,87152.0,0.69886]
[1765815699230,0.2114743,87153.0,87152.0,0.69886]
[1765815699531,0.2114743,87153.0,87152.0,0.69986]
[1765815699918,0.2114743,87153.0,87152.0,0.69886]
[1765815700121,0.0714743,87153.0,87152.0,0.70186]
[1765815700329,0.0714743,87153.0,87152.0,0.7133344]
[1765815700529,0.0714743,87153.0,87152.0,0.7153344]
[1765815700727,0.0714743,87153.0,87152.0,0.005]
[1765815700929,0.1914743,87153.0,87152.0,0.005]
[1765815701631,0.0114748,87149.0,87142.0,0.20353]
[1765815701940,0.0114756,87143.0,87142.0,0.20353]
[1765815702121,0.1814756,87143.0,87142.0,0.20353]
[1765815702522,0.1814756,87143.0,87120.0,0.34333336]
[1765815702523,0.011477,87132.0,87120.0,0.34333336]
[1765815702831,0.011477,87132.0,87123.0,0.00017213]
[1765815702832,0.171477,87132.0,87123.0,0.00017213]
[1765815703933,0.172477,87132.0,87123.0,0.00017213]
[1765815704134,0.172477,87132.0,87131.0,0.20353]
[1765815704736,0.172477,87132.0,87123.0,0.02020491]
[1765815705634,0.173477,87132.0,87123.0,0.02020491]
[1765815706334,0.0114798,87111.0,87110.0,0.20353]
[1765815706632,0.2114798,87111.0,87110.0,0.90239]
[1765815707227,0.21157559,87111.0,87110.0,0.90239]
[1765815707430,0.21157559,87111.0,87110.0,0.92284034]
[1765815708633,0.21157559,87111.0,87110.0,0.92384034]
[1765815709134,0.21157559,87111.0,87110.0,0.92284034]
[1765815709329,0.21157559,87111.0,87110.0,0.92384034]
[1765815709531,0.21157559,87111.0,87110.0,0.92484034]
[1765815709724,9.579e-05,87111.0,87110.0,0.92484034]
[1765815710338,0.00017213,87119.0,87118.0,0.69886]
[1765815710532,0.16017213,87119.0,87118.0,0.69886]
[1765815710738,0.16017213,87119.0,87118.0,0.7103389]
[1765815711126,0.16017213,87119.0,87118.0,0.69886]
[1765815713736,0.00017213,87119.0,87118.0,0.69886]
[1765815714533,0.0114747,87150.0,87130.0,0.20353]
[1765815714534,0.16962672,87150.0,87130.0,0.20353]
[1765815714728,0.1814762,87139.0,87138.0,0.69886]
[1765815715136,0.0114772,87131.0,87130.0,0.55554]
[1765815715440,0.1814772,87131.0,87130.0,0.90239]
[1765815716747,0.1834772,87131.0,87130.0,0.90239]
[1765815717143,0.1854772,87131.0,87130.0,0.90239]